bitfinex/quotes_SOLUSD_20251106
["timestamp","ask_amount","ask_price","bid_price","bid_amount"]
[1762428692819,7.3,159.42,159.4,9.78882769]
[1762428693135,7.3,159.42,159.41,18.41948639]
[1762428694026,7.3,159.42,159.41,17.74948639]
[1762428694227,7.3,159.42,159.41,9.78882769]
[1762428694410,7.3,159.43,159.41,9.78882769]
[1762428695238,6.87206381,159.44,159.41,9.78882769]
[1762428695532,28.5526587,159.46,159.41,9.78882769]
[1762428695533,7.3,159.43,159.42,18.41948639]
[1762428695829,7.3,159.45,159.42,18.41948639]
[1762428698118,7.3,159.45,159.42,24.69209346]
[1762428699625,7.3,159.45,159.42,24.70209346]
[1762428700319,7.3,159.45,159.44,17.74948639]
[1762428701152,7.3,159.45,159.4,7.3]
[1762428701335,0.6,159.44,159.39,0.68]
[1762428701532,8.5606587,159.44,159.39,9.78882769]
[1762428701738,8.5606587,159.44,159.39,17.74948639]
[1762428701922,7.9606587,159.44,159.39,17.74948639]
[1762428702125,8.5606587,159.44,159.39,18.42948639]
[1762428702437,6.87234522,159.43,159.39,17.74948639]
[1762428702641,7.3,159.42,159.39,17.74948639]
[1762428703334,13.572789,159.42,159.39,17.74948639]
[1762428703518,7.3,159.42,159.39,18.42948639]
[1762428703836,13.57275616,159.42,159.39,17.74948639]
[1762428704136,13.57275616,159.42,159.38,7.9606587]
[1762428704338,21.53341486,159.42,159.37,7.9606587]
[1762428704529,7.3,159.42,159.39,7.9606587]
[1762428705830,13.57275765,159.42,159.39,7.9606587]
[1762428706244,7.3,159.42,159.39,7.9606587]
[1762428706450,7.3,159.42,159.39,14.23454303]
[1762428706654,104.7,159.43,159.41,7.9606587]
[1762428706842,7.3,159.42,159.41,7.9606587]
[1762428707047,7.3,159.42,159.4,7.9606587]
[1762428708240,7.3,159.42,159.39,7.9606587]
[1762428708459,7.3,159.42,159.39,8.6406587]
[1762428708760,7.3,159.42,159.4,7.9606587]
[1762428709265,13.57276665,159.42,159.39,8.6406587]
[1762428709435,7.3,159.42,159.39,8.6406587]
[1762428709636,7.3,159.42,159.4,7.9606587]
[1762428710662,13.57284817,159.42,159.39,8.6406587]
[1762428710846,13.57284817,159.42,159.38,7.9606587]
[1762428711045,0.6,159.41,159.37,24.02409841]
[1762428711249,0.6,159.41,159.37,24.70409841]
[1762428711566,21.53350687,159.42,159.37,16.74343971]
[1762428711752,22.13350687,159.42,159.37,24.70409841]
[1762428712963,21.53350687,159.42,159.37,17.74948639]
[1762428713155,0.6,159.41,159.35,9.78882769]
[1762428713462,15.2406587,159.4,159.35,17.74948639]
[1762428713964,0.6,159.39,159.35,18.42948639]
[1762428714142,6.87284817,159.42,159.38,7.9606587]
[1762428714340,7.3,159.41,159.39,7.9606587]
[1762428714540,7.3,159.41,159.38,8.6406587]
[1762428715268,7.3,159.41,159.38,7.9606587]
[1762428715465,0.6,159.4,159.35,9.78882769]
[1762428715769,0.6,159.4,159.36,7.9606587]
[1762428716066,0.6,159.4,159.36,8.6406587]
[1762428716261,8.5606587,159.4,159.35,17.74948639]
[1762428716762,0.6,159.39,159.35,18.42948639]
[1762428716969,7.3,159.38,159.35,18.42948639]
[1762428717155,7.3,159.38,159.35,10.46882769]
[1762428717467,7.3,159.38,159.35,17.74948639]
[1762428717769,7.9,159.38,159.35,17.74948639]
[1762428717969,7.3,159.38,159.35,17.74948639]
[1762428718344,13.57438008,159.38,159.35,17.74948639]
[1762428718837,13.57434228,159.38,159.35,9.78882769]
[1762428719039,13.57434228,159.38,159.35,17.74948639]
[1762428719661,13.57434228,159.38,159.35,9.78882769]
[1762428719841,7.3,159.38,159.35,17.74948639]
[1762428720043,7.3,159.38,159.35,18.42948639]
[1762428720244,0.6,159.37,159.34,9.78882769]
[1762428720479,20.592,159.35,159.32,0.2]
[1762428720663,78.676486,159.34,159.32,0.2]
[1762428720966,20.592,159.33,159.32,0.2]
[1762428721476,7.3,159.33,159.32,8.8406587]
[1762428721646,6.87358754,159.4,159.33,9.78882769]
[1762428721850,7.3,159.39,159.36,7.9606587]
[1762428722050,7.3,159.39,159.35,7.9606587]
[1762428722261,28.492,159.39,159.35,7.9606587]
[1762428722754,34.76614611,159.39,159.35,7.9606587]
[1762428723247,7.3,159.39,159.36,7.9606587]
[1762428723470,14.83308769,159.43,159.38,7.9606587]
[1762428723687,14.23263428,159.44,159.39,7.9606587]
[1762428723872,7.3,159.43,159.39,7.9606587]
[1762428724069,7.9,159.43,159.39,7.9606587]
[1762428724750,14.17250144,159.43,159.39,7.9606587]
[1762428725359,20.592,159.4,159.39,7.9606587]
[1762428725559,27.892,159.4,159.39,7.9606587]
[1762428726063,7.3,159.4,159.39,7.9606587]
[1762428726264,6.87250144,159.43,159.39,7.9606587]
[1762428726464,7.3,159.42,159.39,7.9606587]
[1762428727165,7.3,159.42,159.39,14.23456722]
[1762428727372,7.3,159.42,159.4,7.9606587]
[1762428727576,26.86438398,159.43,159.4,7.9606587]
[1762428727768,7.3,159.42,159.4,7.9606587]
[1762428728108,7.3,159.41,159.4,7.9606587]
[1762428728759,50.50588283,159.43,159.33,9.78882769]
[1762428728992,7.9606587,159.41,159.35,17.74948639]
[1762428729166,7.3,159.4,159.35,17.74948639]
[1762428729480,7.9606587,159.41,159.36,7.9606587]
[1762428729481,0.6,159.41,159.36,7.9606587]
[1762428729660,35.42501976,159.43,159.37,7.9606587]
[1762428729854,7.3,159.42,159.38,7.9606587]
[1762428730057,27.46436106,159.43,159.38,7.9606587]
[1762428730374,7.9,159.42,159.38,7.9606587]
[1762428730587,14.23379087,159.41,159.36,7.9606587]
[1762428730788,7.3,159.4,159.35,14.9159316]
[1762428730961,14.83379087,159.41,159.35,14.9159316]
[1762428731163,7.3,159.39,159.36,7.9606587]
[1762428731572,7.3,159.39,159.36,8.6406587]
[1762428731780,104.7,159.4,159.37,8.6406587]
[1762428732079,112.0,159.4,159.38,7.9606587]
[1762428732258,112.0,159.4,159.39,7.9606587]
[1762428732578,104.7,159.4,159.39,7.9606587]
[1762428732761,104.7,159.4,159.39,14.91457801]
[1762428732762,112.0,159.4,159.39,14.91457801]
[1762428732962,104.7,159.4,159.39,7.9606587]
[1762428733281,104.7,159.4,159.38,7.9606587]
[1762428733582,112.0,159.4,159.38,8.6406587]
[1762428733769,104.7,159.4,159.38,8.6406587]
[1762428733969,7.3,159.39,159.38,8.6406587]
[1762428734686,7.3,159.39,159.38,18.42948639]
[1762428735285,7.3,159.39,159.38,24.70379935]
[1762428735781,104.7,159.4,159.38,24.70379935]
[1762428735968,112.0,159.4,159.38,24.70379935]
[1762428736382,104.7,159.4,159.38,24.70379935]
[1762428736583,7.3,159.39,159.38,24.70379935]
[1762428737591,104.7,159.4,159.38,24.70379935]
[1762428737995,112.0,159.4,159.38,24.70379935]
[1762428738197,104.7,159.4,159.38,24.70379935]
[1762428738490,7.3,159.39,159.38,24.70379935]
[1762428739169,104.7,159.4,159.38,24.70379935]
[1762428739365,112.0,159.4,159.38,24.70379935]
[1762428739561,104.7,159.4,159.38,24.70379935]
[1762428739969,112.0,159.4,159.38,24.70379935]
[1762428740187,104.7,159.4,159.38,24.70379935]
[1762428741391,104.7,159.4,159.38,18.42948639]
[1762428741599,7.28,159.39,159.38,18.42948639]
[1762428742584,7.28,159.39,159.38,18.44948639]
[1762428742789,7.28,159.39,159.38,24.72379935]
[1762428743997,104.7,159.4,159.38,24.72379935]
[1762428744176,111.98,159.4,159.38,24.72379935]
[1762428746403,111.98,159.4,159.38,22.44185497]
[1762428747301,26.53871431,159.5,159.39,16.16754201]
[1762428747302,6.27033342,159.49,159.39,16.16754201]
[1762428747611,7.28,159.48,159.45,5.67871432]
[1762428747915,7.28,159.47,159.44,5.67871432]
[1762428748084,33.14104774,159.49,159.44,5.67871432]
[1762428748280,14.15050603,159.48,159.44,2.17875392]
[1762428748486,14.15050603,159.48,159.44,2.87875392]
[1762428748780,0.6,159.47,159.42,6.27271067]
[1762428748985,7.28,159.46,159.43,2.17875392]
[1762428749287,7.28,159.45,159.43,2.87875392]
[1762428749603,7.28,159.44,159.43,2.87875392]
[1762428749897,0.6,159.47,159.43,2.87875392]
[1762428750106,7.28,159.46,159.44,2.17875392]
[1762428751311,20.592,159.49,159.45,2.87875392]
[1762428751515,7.28,159.47,159.45,0.7]
[1762428751716,7.28,159.47,159.46,0.7]
[1762428752589,7.28,159.47,159.46,2.87875392]
[1762428753615,7.28,159.47,159.46,9.1499191]
[1762428753813,7.28,159.47,159.46,18.93874679]
[1762428756307,50.0,159.54,159.46,18.93874679]
[1762428756308,204.7,159.59,159.47,9.78882769]
[1762428756501,2.17875392,159.55,159.49,2.17875392]
[1762428756706,7.3,159.54,159.49,9.78882769]
[1762428756896,7.3,159.53,159.49,12.62758161]
[1762428757102,7.9,159.53,159.49,12.62758161]
[1762428757285,0.6,159.53,159.49,12.62758161]
[1762428757486,0.6,159.54,159.49,12.62758161]
[1762428758012,0.6,159.54,159.49,18.89733586]
[1762428758013,6.8681064,159.54,159.49,18.89733586]
[1762428758199,7.3,159.53,159.49,18.89733586]
[1762428758509,0.6,159.53,159.49,18.89733586]
[1762428758814,6.8681064,159.54,159.49,18.89733586]
[1762428758990,7.3,159.53,159.49,18.89733586]
[1762428759520,7.3,159.53,159.5,0.66]
[1762428759907,7.3,159.53,159.5,2.83875392]
[1762428760390,0.6,159.52,159.47,2.17875392]
[1762428760722,7.3,159.51,159.47,2.17875392]
[1762428761014,7.3,159.51,159.47,9.10942655]
[1762428761226,7.3,159.51,159.48,2.83875392]
[1762428762107,13.56922059,159.51,159.48,2.17875392]
[1762428762287,13.56922059,159.51,159.48,2.83875392]
[1762428762492,7.3,159.51,159.48,2.83875392]
[1762428762900,7.3,159.51,159.48,9.10904381]
[1762428763700,38.44173066,159.54,159.5,2.17875392]
[1762428763701,20.592,159.54,159.5,2.17875392]
[1762428763914,7.3,159.53,159.5,2.17875392]
[1762428764105,7.3,159.53,159.5,2.83875392]
[1762428764414,7.3,159.53,159.5,2.17875392]
[1762428765399,7.3,159.53,159.5,2.83875392]
[1762428765792,13.56843182,159.53,159.5,2.17875392]
[1762428765993,13.56843182,159.53,159.49,16.05856017]
[1762428765994,0.6,159.52,159.49,9.78882769]
[1762428766223,6.86897757,159.52,159.49,9.78882769]
[1762428766431,13.5684657,159.53,159.49,9.78882769]
[1762428766623,118.8684657,159.53,159.49,12.62758161]
[1762428767733,118.8684657,159.53,159.49,18.8975079]
[1762428767932,112.0,159.53,159.5,2.17875392]
[1762428768243,112.0,159.53,159.5,2.83875392]
[1762428768913,118.26844807,159.53,159.5,2.83875392]
[1762428769531,118.26844807,159.53,159.49,9.78882769]
[1762428769701,118.26844807,159.53,159.5,2.83875392]
[1762428770701,112.0,159.53,159.5,2.83875392]
[1762428771325,118.26850045,159.53,159.5,2.83875392]
[1762428775539,118.26850045,159.53,159.5,2.89875392]
[1762428781038,112.0,159.53,159.51,2.89875392]
[1762428781541,104.7,159.53,159.52,2.89875392]
[1762428781714,104.7,159.53,159.52,2.17875392]
[1762428781911,104.7,159.53,159.52,2.89875392]
[1762428782137,111.98,159.53,159.52,2.89875392]
[1762428782953,111.98,159.53,159.51,2.17875392]
[1762428783436,111.56848866,159.53,159.5,2.17875392]
[1762428783622,7.28,159.52,159.5,2.89875392]
[1762428786034,7.28,159.52,159.5,9.1683258]
[1762428786214,104.7,159.53,159.51,2.89875392]
[1762428786419,104.7,159.58,159.53,9.78882769]
[1762428786631,7.28,159.57,159.52,2.89875392]
[1762428786839,7.28,159.57,159.53,0.72]
[1762428787043,7.28,159.57,159.54,6.26802055]
[1762428787418,7.28,159.57,159.55,0.72]
[1762428787742,0.6,159.56,159.53,0.72]
[1762428787947,7.28,159.55,159.54,2.17875392]
[1762428788741,7.28,159.55,159.53,2.17875392]
[1762428789120,7.28,159.55,159.52,2.89875392]
[1762428789319,7.88,159.55,159.52,2.17875392]
[1762428789746,7.28,159.55,159.52,2.89875392]
[1762428790042,14.14776338,159.55,159.51,2.17875392]
[1762428790232,14.14776338,159.55,159.51,2.89875392]
[1762428793040,14.14776338,159.55,159.51,9.16793534]
[1762428793948,13.54776338,159.55,159.51,8.44793534]
[1762428794249,13.54776338,159.55,159.52,0.72]
[1762428795322,14.14776338,159.55,159.5,6.26959247]
[1762428795522,14.14776338,159.55,159.51,2.89875392]
[1762428795849,104.7,159.54,159.52,2.17875392]
[1762428796050,104.7,159.53,159.49,9.78882769]
[1762428796251,20.592,159.49,159.42,0.72]
[1762428796432,2.17875392,159.47,159.42,2.89875392]
[1762428796860,2.17875392,159.45,159.4,0.72]
[1762428797029,7.28,159.44,159.4,2.89875392]
[1762428797225,2.77875392,159.45,159.41,9.78882769]
[1762428797427,10.05875392,159.44,159.38,0.72]
[1762428797732,2.17875392,159.43,159.38,2.89875392]
[1762428797931,2.77875392,159.43,159.38,2.89875392]
[1762428798154,0.6,159.43,159.39,2.89875392]
[1762428798356,7.28,159.44,159.41,2.17875392]
[1762428798528,7.28,159.44,159.43,2.17875392]
[1762428798929,7.28,159.44,159.43,2.89875392]
[1762428800569,13.5520305,159.44,159.41,2.17875392]
[1762428800743,13.5520305,159.44,159.41,0.72]
[1762428800933,13.5520305,159.44,159.4,11.96758161]
[1762428801133,13.5520305,159.44,159.41,0.72]
[1762428802032,0.6,159.43,159.39,9.78882769]
[1762428802254,7.28,159.42,159.4,2.84875392]
[1762428802472,7.28,159.41,159.4,2.84875392]
[1762428802762,7.28,159.41,159.4,2.17875392]
[1762428803141,7.28,159.42,159.4,2.84875392]
[1762428803332,7.28,159.42,159.41,2.84875392]
[1762428803935,7.28,159.42,159.41,9.12188609]
[1762428804934,104.7,159.44,159.42,9.78882769]
[1762428805141,104.7,159.44,159.43,2.17875392]
[1762428805142,111.98,159.44,159.43,2.17875392]
[1762428805350,7.28,159.44,159.43,2.84875392]
[1762428805664,104.7,159.49,159.44,9.78882769]
[1762428805866,7.28,159.48,159.46,2.17875392]
[1762428806250,104.7,159.49,159.47,2.17875392]
[1762428806569,7.28,159.48,159.47,2.17875392]
[1762428807265,7.28,159.48,159.47,2.84875392]
[1762428807562,7.28,159.48,159.47,2.17875392]
[1762428808260,14.15039558,159.48,159.43,9.78882769]
[1762428808446,14.15039558,159.48,159.44,3.40487395]
[1762428809342,14.15039558,159.48,159.44,4.07487395]
[1762428810469,104.7,159.47,159.44,4.07487395]
[1762428810773,7.28,159.46,159.44,4.07487395]
[1762428811074,7.28,159.46,159.44,0.67]
[1762428811277,7.28,159.46,159.44,6.9419196]
[1762428811682,7.28,159.46,159.44,9.67679355]
[1762428811865,7.28,159.46,159.44,10.34679355]
[1762428814473,0.6,159.45,159.41,0.67]
[1762428814674,13.5520492,159.44,159.4,9.67822198]
[1762428814866,13.5520492,159.44,159.4,6.27334803]
[1762428814867,7.28,159.43,159.4,6.27334803]
[1762428815380,7.28,159.43,159.4,6.94334803]
[1762428815676,7.28,159.43,159.4,10.34822198]
[1762428816052,7.28,159.43,159.4,4.07487395]
[1762428816370,7.28,159.43,159.4,10.34836688]
[1762428816672,7.28,159.43,159.39,6.27382234]
[1762428816878,7.28,159.43,159.39,10.34869629]
[1762428817177,7.28,159.43,159.4,4.07487395]
[1762428819181,7.88,159.43,159.39,6.27382234]
[1762428819383,7.88,159.43,159.36,3.40487395]
[1762428819384,3.40487395,159.41,159.36,3.40487395]
[1762428819554,0.6,159.42,159.35,9.78882769]
[1762428819555,31.27687395,159.4,159.35,9.78882769]
[1762428819761,31.27687395,159.4,159.34,10.35064262]
[1762428819762,3.40487395,159.39,159.34,10.35064262]
[1762428819960,4.00487395,159.39,159.34,0.67]
[1762428820173,23.99687395,159.37,159.32,14.06370164]
[1762428820478,0.6,159.38,159.32,0.87]
[1762428820479,10.68487395,159.36,159.32,0.87]
[1762428820688,10.68487395,159.36,159.32,10.65882769]
[1762428820869,11.28487395,159.36,159.32,10.65882769]
[1762428821184,14.15525105,159.36,159.32,14.06370164]
[1762428821981,0.6,159.35,159.32,0.2]
[1762428822168,4.00487395,159.35,159.32,0.2]
[1762428822364,3.40487395,159.34,159.32,0.2]
[1762428822678,7.28,159.33,159.32,0.2]
[1762428823754,7.14782541,159.37,159.32,10.55154982]
[1762428823960,4.00487395,159.43,159.36,3.40487395]
[1762428824155,4.00487395,159.43,159.37,3.40487395]
[1762428824156,7.3,159.42,159.37,3.40487395]
[1762428824493,26.86404837,159.44,159.38,7.9758006]
[1762428824674,27.43838666,159.45,159.4,7.9758006]
[1762428824864,7.3,159.44,159.4,7.9758006]
[1762428825068,7.9,159.44,159.4,8.6458006]
[1762428825271,21.192,159.44,159.4,8.6458006]
[1762428825470,7.3,159.43,159.4,8.6458006]
[1762428825689,7.3,159.43,159.41,0.67]
[1762428825991,7.3,159.42,159.4,7.9758006]
[1762428826189,7.3,159.41,159.4,7.9758006]
[1762428826561,7.3,159.41,159.4,8.6458006]
[1762428827402,7.3,159.41,159.33,7.3]
[1762428827403,72.149299,159.41,159.35,0.67]
[1762428827604,7.9758006,159.39,159.35,0.67]
[1762428827799,7.3,159.38,159.34,7.9758006]
[1762428828094,7.3,159.38,159.34,8.6458006]
[1762428828278,7.3,159.38,159.34,14.92163962]
[1762428828475,7.3,159.38,159.34,8.6458006]
[1762428828697,15.2758006,159.38,159.34,0.67]
[1762428829796,0.78419071,159.4,159.34,14.92160664]
[1762428830092,112.0,159.39,159.36,7.9758006]
[1762428830399,7.3,159.38,159.36,7.9758006]
[1762428830694,7.3,159.38,159.36,8.6458006]
[1762428831994,22.15018504,159.38,159.33,0.67]
[1762428832181,8.5758006,159.37,159.32,8.1758006]
[1762428832380,112.6758006,159.36,159.32,0.2]
[1762428832695,7.3,159.35,159.32,8.8458006]
[1762428832893,7.3,159.35,159.32,15.12243097]
[1762428833092,7.3,159.35,159.32,8.8458006]
[1762428833478,7.3,159.35,159.32,0.2]
[1762428833479,113.2758006,159.34,159.32,0.2]
[1762428833685,7.9758006,159.33,159.32,0.2]
[1762428833894,14.85208253,159.33,159.32,0.2]
[1762428834476,22.15208253,159.33,159.32,0.2]
[1762428835006,22.93661777,159.33,159.32,0.2]
[1762428836501,21.55208253,159.33,159.32,0.2]
[1762428836796,22.15208253,159.33,159.32,0.2]
[1762428838496,21.55208253,159.33,159.32,0.2]
[1762428838890,13.57628193,159.33,159.32,0.2]
[1762428844995,21.55208253,159.33,159.32,0.2]
[1762428845285,13.57628193,159.33,159.32,0.2]
[1762428848110,21.55208253,159.33,159.32,0.2]
[1762428848296,22.15208253,159.33,159.32,0.2]
[1762428850019,154.7,159.32,159.3,0.2]
[1762428850197,16.06043433,159.31,159.3,0.2]
[1762428850531,16.66043433,159.31,159.3,0.2]
[1762428852189,14.85287046,159.31,159.3,0.2]
[1762428852390,21.55287046,159.31,159.3,0.2]
[1762428852608,22.15287046,159.31,159.3,0.2]
[1762428852805,6.27706986,159.31,159.3,0.2]
[1762428853030,104.7,159.32,159.3,0.87]
[1762428853211,7.3,159.31,159.3,8.1758006]
[1762428853710,7.3,159.31,159.3,8.8458006]
[1762428854112,13.57706986,159.31,159.3,0.87]
[1762428854314,7.3,159.31,159.3,8.8458006]
[1762428854504,7.3,159.31,159.3,0.87]
[1762428855100,7.3,159.31,159.3,8.8458006]
[1762428856113,7.3,159.31,159.3,0.87]
[1762428857213,13.57706986,159.31,159.3,0.2]
[1762428857823,13.57706986,159.31,159.3,0.87]
[1762428858034,7.3,159.31,159.3,0.87]
[1762428859032,7.3,159.31,159.3,0.2]
[1762428859033,13.57706986,159.31,159.3,0.2]
[1762428859910,22.15287046,159.31,159.3,0.2]
[1762428860105,22.13287046,159.31,159.3,0.2]
[1762428860627,7.88,159.31,159.3,0.2]
[1762428860934,7.28,159.31,159.3,0.2]
[1762428862331,21.53287046,159.31,159.3,0.2]
[1762428863019,13.55706986,159.31,159.3,0.2]
[1762428864128,7.28,159.31,159.3,0.88]
[1762428864318,13.55706986,159.31,159.3,0.88]
[1762428864829,13.55706986,159.31,159.3,0.2]
[1762428868231,88.94588458,159.31,159.3,0.2]
[1762428868420,118.35388458,159.31,159.3,0.2]
[1762428868738,118.35388458,159.31,159.29,0.2]
[1762428868909,4.01218099,159.3,159.29,0.2]
[1762428869111,4.01218099,159.3,159.29,1e-08]
[1762428870024,13.5574639,159.3,159.29,1e-08]
[1762428871225,2.18396036,159.31,159.29,0.68000001]
[1762428871226,6.27707851,159.31,159.29,0.68000001]
[1762428871431,7.28,159.3,159.29,0.68000001]
[1762428871651,7.28,159.3,159.29,1e-08]
[1762428872050,7.28,159.3,159.29,0.68000001]
[1762428872562,118.2574639,159.3,159.29,1e-08]
[1762428874748,118.2574639,159.3,159.29,0.68000001]
[1762428878558,110.9774639,159.3,159.29,0.68000001]
[1762428878758,118.2574639,159.3,159.29,0.68000001]
[1762428880262,111.98,159.3,159.29,0.68000001]
[1762428882556,118.2574639,159.3,159.29,0.68000001]
[1762428884562,118.2574639,159.3,159.29,1e-08]
[1762428885156,118.2574639,159.3,159.29,0.72000001]
[1762428885465,118.2574639,159.3,159.29,1e-08]
[1762428885963,121.82610724,159.3,159.29,1e-08]
[1762428886157,114.54610724,159.3,159.29,1e-08]
[1762428886462,121.82610724,159.3,159.29,1e-08]
[1762428888644,171.82610724,159.3,159.29,1e-08]
[1762428888886,171.04142426,159.3,159.29,1e-08]
[1762428889669,66.34142426,159.3,159.29,1e-08]
[1762428889852,67.12610724,159.3,159.29,1e-08]
[1762428892568,15.74142426,159.3,159.29,1e-08]
[1762428892949,16.34142426,159.3,159.29,1e-08]
[1762428895943,66.34142426,159.3,159.29,1e-08]
[1762428901689,66.34142426,159.3,159.24,0.2]
[1762428901690,50.0,159.26,159.24,0.2]
[1762428901995,10.24888971,159.25,159.24,0.2]
[1762428902199,10.84888971,159.25,159.24,0.2]
[1762428902891,10.24888971,159.25,159.24,0.2]
[1762428903076,2.96888971,159.25,159.24,0.2]
[1762428903277,16.52832456,159.25,159.24,0.2]
[1762428903902,9.84832456,159.25,159.24,0.2]
[1762428904101,17.12832456,159.25,159.24,1e-08]
[1762428904301,120.592,159.23,159.22,1e-08]
[1762428904499,130.8409883,159.23,159.22,1e-08]
[1762428904804,130.65596036,159.23,159.22,1e-08]
[1762428905185,136.93618393,159.23,159.22,1e-08]
[1762428906809,139.4548377,159.23,159.22,1e-08]
[1762428906998,15.69858712,159.25,159.22,0.68000001]
[1762428907202,7.28,159.23,159.22,0.68000001]
[1762428908586,7.28,159.23,159.22,2.86396037]
[1762428908997,125.292,159.24,159.22,2.86396037]
[1762428909193,7.28,159.23,159.22,2.18396037]
[1762428909512,7.28,159.23,159.22,1e-08]
[1762428909806,7.28,159.23,159.22,0.68000001]
[1762428910014,7.28,159.23,159.22,1e-08]
[1762428910199,10.06396036,159.23,159.22,1e-08]
[1762428910394,60.06396036,159.23,159.22,1e-08]
[1762428911001,66.34418393,159.23,159.22,1e-08]
[1762428912714,15.74418393,159.23,159.22,1e-08]
[1762428912910,6.28022357,159.23,159.22,0.68000001]
[1762428913114,13.56022357,159.23,159.22,0.68000001]
[1762428913621,15.74418393,159.23,159.22,1e-08]
[1762428915699,16.34418393,159.23,159.22,1e-08]
[1762428915912,15.74418393,159.23,159.22,1e-08]
[1762428922107,66.34418393,159.23,159.22,1e-08]
[1762428922519,65.74418393,159.23,159.22,1e-08]
[1762428922716,66.34418393,159.23,159.22,1e-08]
[1762428922917,65.74418393,159.23,159.22,1e-08]
[1762428923426,58.46418393,159.23,159.22,1e-08]
[1762428923611,65.74418393,159.23,159.22,1e-08]
[1762428923810,58.46418393,159.23,159.22,1e-08]
[1762428924123,65.74418393,159.23,159.22,1e-08]
[1762428924306,58.46418393,159.23,159.22,1e-08]
[1762428924508,65.74418393,159.23,159.22,1e-08]
[1762428924922,66.34418393,159.23,159.22,1e-08]
[1762428926407,65.74418393,159.23,159.22,1e-08]
[1762428927118,6.28022357,159.23,159.22,0.72000001]
[1762428927434,34.15222357,159.23,159.22,0.72000001]
[1762428931819,26.87222357,159.23,159.22,0.72000001]
[1762428932020,34.15222357,159.23,159.22,0.72000001]
[1762428932215,20.592,159.23,159.22,0.72000001]
[1762428932448,7.28,159.23,159.22,4.13449392]
[1762428932619,20.592,159.24,159.22,4.13449392]
[1762428932823,20.592,159.24,159.23,0.72]
[1762428933028,34.15182918,159.24,159.23,0.72]
[1762428933227,26.87182918,159.24,159.23,0.72]
[1762428933417,27.872,159.24,159.23,0.72]
[1762428933822,34.15182918,159.24,159.23,0.72]
[1762428934351,27.872,159.24,159.23,0.72]
[1762428935420,20.592,159.24,159.23,0.72]
[1762428935620,27.872,159.24,159.23,0.72]
[1762428936041,20.592,159.24,159.23,4.13449391]
[1762428936428,27.872,159.24,159.23,4.13449391]
[1762428936636,132.572,159.24,159.23,4.13449391]
[1762428936841,132.572,159.24,159.23,0.72]
[1762428937036,138.85182918,159.24,159.23,0.72]
[1762428937244,131.57182918,159.24,159.23,0.72]
[1762428937428,138.85182918,159.24,159.23,0.72]
[1762428937628,131.57182918,159.24,159.23,0.72]
[1762428937924,138.85182918,159.24,159.23,0.72]
[1762428938123,131.57182918,159.24,159.23,0.72]
[1762428938844,138.85182918,159.24,159.23,0.72]
[1762428939155,104.7,159.23,159.22,1e-08]
[1762428939351,3.41449391,159.23,159.22,1e-08]
[1762428939720,61.29449391,159.23,159.22,1e-08]
[1762428939932,54.01449391,159.23,159.22,1e-08]
[1762428940144,61.29449391,159.23,159.22,1e-08]
[1762428941357,67.57471748,159.23,159.22,1e-08]
[1762428941651,6.28022357,159.23,159.22,0.67000001]
[1762428942025,13.56022357,159.23,159.22,0.67000001]
[1762428942351,20.592,159.23,159.22,0.67000001]
[1762428942521,27.872,159.23,159.22,0.67000001]
[1762428944154,34.15222357,159.23,159.22,0.67000001]
[1762428944941,26.87222357,159.23,159.22,0.67000001]
[1762428945246,34.15222357,159.23,159.22,0.67000001]
[1762428947246,26.87222357,159.23,159.22,0.67000001]
[1762428947452,34.15222357,159.23,159.22,0.67000001]
[1762428947654,26.87222357,159.23,159.22,0.67000001]
[1762428947956,34.15222357,159.23,159.22,0.67000001]
[1762428948148,26.87222357,159.23,159.22,0.67000001]
[1762428948340,34.15222357,159.23,159.22,0.67000001]
[1762428948650,34.15222357,159.23,159.22,4.08449392]